[Event "December 19 Late 2023"]
[Site "https://www.chess.com"]
[Date "2023.12.19"]
[Round "5"]
[White "Rangel, Daniel"]
[Black "Ivanov, Aleksandr"]
[Result "1-0"]
[Board "107"]
[TimeControl "180+1"]
[WhiteFideId "2124475"]
[BlackFideId "2092980"]
[WhiteElo "2267"]
[BlackElo "2158"]
[WhiteTeam "BRA"]
[BlackTeam "USA"]
[WhiteClock "0:01:35"]
[BlackClock "0:00:47"]

1. c4 {[%clk 0:03:00]}  e6 {[%clk 0:02:59]} 2. g3 {[%clk 0:03:01]}  d5 {[%clk 0:02:59]} 3. Bg2 {[%clk 0:03:02]}  c6 {[%clk 0:02:58]} 4. Nf3 {[%clk 0:03:03]}  dxc4 {[%clk 0:02:58]} 5. O-O {[%clk 0:03:04]}  b5 {[%clk 0:02:58]} 6. a4 {[%clk 0:03:04]}  Bb7 {[%clk 0:02:57]} 7. b3 {[%clk 0:03:03]}  cxb3 {[%clk 0:02:56]} 8. d4 {[%clk 0:03:03]}  b4 {[%clk 0:02:49]} 9. a5 {[%clk 0:02:57]}  c5 {[%clk 0:02:45]} 10. Bb2 {[%clk 0:02:51]}  Nf6 {[%clk 0:02:41]} 11. Qxb3 {[%clk 0:02:47]}  Nbd7 {[%clk 0:02:33]} 12. a6 {[%clk 0:02:46]}  Bd5 {[%clk 0:02:30]} 13. Qa4 {[%clk 0:02:42]}  c4 {[%clk 0:02:20]} 14. Ne5 {[%clk 0:02:38]}  c3 {[%clk 0:02:10]} 15. Nxc3 {[%clk 0:02:13]}  bxc3 {[%clk 0:02:08]} 16. Bxc3 {[%clk 0:02:14]}  Bxg2 {[%clk 0:02:04]} 17. Kxg2 {[%clk 0:02:15]}  Nd5 {[%clk 0:01:59]} 18. Ba5 {[%clk 0:02:10]}  Nb6 {[%clk 0:01:43]} 19. Bxb6 {[%clk 0:02:07]}  axb6 {[%clk 0:01:43]} 20. Qc6 {[%clk 0:02:05]}  Ra7 {[%clk 0:01:37]} 21. Qb5 {[%clk 0:02:02]}  Qa8+ {[%clk 0:01:29]} 22. Kg1 {[%clk 0:01:59]}  Be7 {[%clk 0:01:19]} 23. Rfc1 {[%clk 0:01:55]}  Qd8 {[%clk 0:01:13]} 24. Nc6 {[%clk 0:01:50]}  Qa8 {[%clk 0:01:12]} 25. Nxa7 {[%clk 0:01:44]}  Qxa7 {[%clk 0:01:09]} 26. Rc8+ {[%clk 0:01:44]}  Bd8 {[%clk 0:01:09]} 27. Qc6 {[%clk 0:01:35]}  O-O {[%clk 0:01:01]} 28. Ra8 {[%clk 0:01:35]}  Qc7 {[%clk 0:00:59]} 29. Qxc7 {[%clk 0:01:34]}  Bxc7 {[%clk 0:00:59]} 30. Rxf8+ {[%clk 0:01:34]}  Kxf8 {[%clk 0:00:47]} 31. a7 {[%clk 0:01:35]} 1-0

[Event "December 19 Late 2023"]
[Site "https://www.chess.com"]
[Date "2023.12.19"]
[Round "5"]
[White "Hernandez Santos, David Ale"]
[Black "Hamidi, Amir Mohammad"]
[Result "1-0"]
[Board "108"]
[TimeControl "180+1"]
[WhiteFideId "5132002"]
[BlackFideId "12563285"]
[WhiteElo "1553"]
[BlackElo "2217"]
[WhiteTeam "MEX"]
[BlackTeam "IRI"]
[WhiteClock "0:00:19"]
[BlackClock "0:00:02"]

1. d4 {[%clk 0:02:54]}  Nf6 {[%clk 0:02:59]} 2. Nc3 {[%clk 0:02:54]}  d5 {[%clk 0:02:59]} 3. Bf4 {[%clk 0:02:54]}  g6 {[%clk 0:02:59]} 4. e3 {[%clk 0:02:53]}  c5 {[%clk 0:02:59]} 5. h4 {[%clk 0:02:53]}  Bg7 {[%clk 0:02:54]} 6. h5 {[%clk 0:02:52]}  Nxh5 {[%clk 0:02:09]} 7. Rxh5 {[%clk 0:02:50]}  gxh5 {[%clk 0:02:10]} 8. Qxh5 {[%clk 0:02:48]}  cxd4 {[%clk 0:02:05]} 9. exd4 {[%clk 0:02:46]}  Be6 {[%clk 0:01:48]} 10. Nb5 {[%clk 0:02:41]}  Na6 {[%clk 0:01:40]} 11. O-O-O {[%clk 0:02:36]}  Qa5 {[%clk 0:01:38]} 12. a3 {[%clk 0:02:32]}  Rc8 {[%clk 0:01:33]} 13. Nxa7 {[%clk 0:02:24]}  Ra8 {[%clk 0:00:48]} 14. Nb5 {[%clk 0:02:23]}  Qb6 {[%clk 0:00:22]} 15. Nf3 {[%clk 0:02:15]}  Kf8 {[%clk 0:00:21]} 16. Ng5 {[%clk 0:02:03]}  Rc8 {[%clk 0:00:21]} 17. Kb1 {[%clk 0:01:53]}  Qc6 {[%clk 0:00:16]} 18. Bd3 {[%clk 0:01:48]}  h6 {[%clk 0:00:16]} 19. Nxe6+ {[%clk 0:01:36]}  Qxe6 {[%clk 0:00:17]} 20. Bf5 {[%clk 0:01:27]}  Qc6 {[%clk 0:00:08]} 21. Bxc8 {[%clk 0:01:24]}  Qxc8 {[%clk 0:00:09]} 22. Qxd5 {[%clk 0:01:23]}  Bf6 {[%clk 0:00:06]} 23. Be5 {[%clk 0:01:20]}  Qg4 {[%clk 0:00:06]} 24. f3 {[%clk 0:01:11]}  Qg5 {[%clk 0:00:05]} 25. Qxb7 {[%clk 0:01:01]}  Bxe5 {[%clk 0:00:05]} 26. dxe5 {[%clk 0:01:02]}  Nc5 {[%clk 0:00:04]} 27. Qc8+ {[%clk 0:01:00]}  Kg7 {[%clk 0:00:05]} 28. Qxc5 {[%clk 0:01:00]}  Rb8 {[%clk 0:00:04]} 29. Nc3 {[%clk 0:00:45]}  e6 {[%clk 0:00:04]} 30. Qc7 {[%clk 0:00:37]}  Rf8 {[%clk 0:00:01]} 31. g4 {[%clk 0:00:32]}  h5 {[%clk 0:00:01]} 32. gxh5 {[%clk 0:00:31]}  Qxh5 {[%clk 0:00:02]} 33. Qe7 {[%clk 0:00:20]}  Qf5 {[%clk 0:00:02]} 34. Rg1+ {[%clk 0:00:20]}  Kh8 {[%clk 0:00:02]} 35. Qh4+ {[%clk 0:00:20]}  Qh7 {[%clk 0:00:03]} 36. Qf6+ {[%clk 0:00:19]}  Qg7 {[%clk 0:00:02]} 37. Qxg7# {[%clk 0:00:19]} 1-0

[Event "December 19 Late 2023"]
[Site "https://www.chess.com"]
[Date "2023.12.19"]
[Round "5"]
[White "WoolworthsManly"]
[Black "Dwilewicz, Katarzyna"]
[Result "1-0"]
[Board "109"]
[TimeControl "180+1"]
[BlackFideId "1148486"]
[WhiteElo "2671"]
[BlackElo "2098"]
[BlackTeam "POL"]
[WhiteClock "0:00:54"]
[BlackClock "0:00:02"]

1. e4 {[%clk 0:02:56]}  c5 {[%clk 0:02:57]} 2. Nf3 {[%clk 0:02:56]}  Nc6 {[%clk 0:02:58]} 3. Bb5 {[%clk 0:02:53]}  g6 {[%clk 0:02:56]} 4. O-O {[%clk 0:02:49]}  Bg7 {[%clk 0:02:56]} 5. c3 {[%clk 0:02:47]}  e5 {[%clk 0:02:55]} 6. d4 {[%clk 0:02:41]}  exd4 {[%clk 0:02:53]} 7. cxd4 {[%clk 0:02:41]}  Nxd4 {[%clk 0:02:49]} 8. Nxd4 {[%clk 0:02:41]}  Bxd4 {[%clk 0:02:48]} 9. Nc3 {[%clk 0:02:41]}  Ne7 {[%clk 0:02:45]} 10. Bh6 {[%clk 0:02:38]}  a6 {[%clk 0:02:21]} 11. Bc4 {[%clk 0:02:37]}  b5 {[%clk 0:02:21]} 12. Bd5 {[%clk 0:02:38]}  Nxd5 {[%clk 0:01:56]} 13. Nxd5 {[%clk 0:02:39]}  f6 {[%clk 0:01:46]} 14. Be3 {[%clk 0:02:17]}  Bxe3 {[%clk 0:01:27]} 15. fxe3 {[%clk 0:02:18]}  O-O {[%clk 0:01:26]} 16. Nxf6+ {[%clk 0:02:06]}  Kg7 {[%clk 0:01:14]} 17. Qd5 {[%clk 0:02:01]}  Ra7 {[%clk 0:01:09]} 18. e5 {[%clk 0:01:59]}  Rc7 {[%clk 0:00:59]} 19. Rad1 {[%clk 0:01:53]}  Qe7 {[%clk 0:00:52]} 20. Rf4 {[%clk 0:01:15]}  Bb7 {[%clk 0:00:37]} 21. Qd6 {[%clk 0:01:16]}  Qxd6 {[%clk 0:00:35]} 22. exd6 {[%clk 0:01:16]}  Rcc8 {[%clk 0:00:27]} 23. Nxd7 {[%clk 0:01:16]}  Rxf4 {[%clk 0:00:22]} 24. exf4 {[%clk 0:01:17]}  c4 {[%clk 0:00:23]} 25. Ne5 {[%clk 0:01:11]}  Kf6 {[%clk 0:00:19]} 26. d7 {[%clk 0:01:07]}  Rd8 {[%clk 0:00:20]} 27. Kf2 {[%clk 0:01:06]}  Ke6 {[%clk 0:00:19]} 28. g3 {[%clk 0:01:05]}  Bd5 {[%clk 0:00:17]} 29. Ke3 {[%clk 0:01:03]}  a5 {[%clk 0:00:10]} 30. Kd4 {[%clk 0:01:02]}  g5 {[%clk 0:00:09]} 31. Kc5 {[%clk 0:01:01]}  Be4 {[%clk 0:00:06]} 32. Kxb5 {[%clk 0:00:54]}  Bd3 {[%clk 0:00:05]} 33. Nxd3 {[%clk 0:00:53]}  cxd3 {[%clk 0:00:06]} 34. Rxd3 {[%clk 0:00:53]}  gxf4 {[%clk 0:00:02]} 35. gxf4 {[%clk 0:00:54]} 1-0

[Event "December 19 Late 2023"]
[Site "https://www.chess.com"]
[Date "2023.12.19"]
[Round "5"]
[White "Carrasco Miranda, Andres"]
[Black "Guerra Tulcan, Lenin"]
[Result "1-0"]
[Board "110"]
[TimeControl "180+1"]
[WhiteFideId "3405990"]
[BlackFideId "3601382"]
[WhiteElo "2183"]
[BlackElo "2368"]
[WhiteTeam "CHI"]
[BlackTeam "ECU"]
[WhiteClock "0:00:13"]
[BlackClock "0:00:08"]

1. d4 {[%clk 0:02:52]}  Nf6 {[%clk 0:02:59]} 2. c4 {[%clk 0:02:52]}  c5 {[%clk 0:02:56]} 3. d5 {[%clk 0:02:53]}  d6 {[%clk 0:02:50]} 4. Nc3 {[%clk 0:02:51]}  g6 {[%clk 0:02:49]} 5. g3 {[%clk 0:02:52]}  Bg7 {[%clk 0:02:45]} 6. Bg2 {[%clk 0:02:52]}  O-O {[%clk 0:02:45]} 7. e4 {[%clk 0:02:50]}  b6 {[%clk 0:02:39]} 8. Nge2 {[%clk 0:02:49]}  Bb7 {[%clk 0:02:37]} 9. O-O {[%clk 0:02:48]}  Nbd7 {[%clk 0:02:37]} 10. a4 {[%clk 0:02:48]}  a6 {[%clk 0:02:36]} 11. Rb1 {[%clk 0:02:46]}  Re8 {[%clk 0:02:32]} 12. h3 {[%clk 0:02:47]}  Qc7 {[%clk 0:02:19]} 13. f4 {[%clk 0:02:39]}  e6 {[%clk 0:02:07]} 14. dxe6 {[%clk 0:02:33]}  Rxe6 {[%clk 0:02:07]} 15. f5 {[%clk 0:02:27]}  Ree8 {[%clk 0:02:02]} 16. fxg6 {[%clk 0:02:25]}  hxg6 {[%clk 0:01:52]} 17. Nd5 {[%clk 0:02:02]}  Bxd5 {[%clk 0:01:43]} 18. exd5 {[%clk 0:02:03]}  b5 {[%clk 0:01:24]} 19. axb5 {[%clk 0:02:02]}  axb5 {[%clk 0:01:24]} 20. cxb5 {[%clk 0:02:02]}  Qb6 {[%clk 0:01:20]} 21. Nc3 {[%clk 0:02:02]}  Nh5 {[%clk 0:01:14]} 22. Kh2 {[%clk 0:01:56]}  Be5 {[%clk 0:01:05]} 23. Bf4 {[%clk 0:01:40]}  Nxf4 {[%clk 0:01:01]} 24. gxf4 {[%clk 0:01:41]}  Bg7 {[%clk 0:00:57]} 25. f5 {[%clk 0:01:41]}  Re3 {[%clk 0:00:48]} 26. fxg6 {[%clk 0:01:39]}  fxg6 {[%clk 0:00:48]} 27. Qg4 {[%clk 0:01:35]}  Ne5 {[%clk 0:00:45]} 28. Qe6+ {[%clk 0:01:35]}  Kh7 {[%clk 0:00:45]} 29. Ne4 {[%clk 0:01:19]}  Qd8 {[%clk 0:00:22]} 30. Rf4 {[%clk 0:00:57]}  Rxe4 {[%clk 0:00:21]} 31. Bxe4 {[%clk 0:00:54]}  Qg5 {[%clk 0:00:20]} 32. Rbf1 {[%clk 0:00:49]}  Ra2 {[%clk 0:00:19]} 33. R4f2 {[%clk 0:00:41]}  c4 {[%clk 0:00:18]} 34. b6 {[%clk 0:00:39]}  Qh4 {[%clk 0:00:18]} 35. b7 {[%clk 0:00:36]}  Qxe4 {[%clk 0:00:18]} 36. b8=Q {[%clk 0:00:36]}  c3 {[%clk 0:00:14]} 37. Qbg8+ {[%clk 0:00:34]}  Kh6 {[%clk 0:00:14]} 38. bxc3 {[%clk 0:00:13]}  Nf3+ {[%clk 0:00:13]} 39. Kg3 {[%clk 0:00:13]}  Be5+ {[%clk 0:00:11]} 40. Qxe5 {[%clk 0:00:13]}  Qxe5+ {[%clk 0:00:10]} 41. Kxf3 {[%clk 0:00:13]}  Ra3 {[%clk 0:00:10]} 42. Qf8+ {[%clk 0:00:12]}  Kh5 {[%clk 0:00:11]} 43. Kg2 {[%clk 0:00:11]}  Rxc3 {[%clk 0:00:11]} 44. Rf3 {[%clk 0:00:11]}  Rc2+ {[%clk 0:00:10]} 45. R1f2 {[%clk 0:00:11]}  Rxf2+ {[%clk 0:00:10]} 46. Kxf2 {[%clk 0:00:11]}  Qb2+ {[%clk 0:00:10]} 47. Kg3 {[%clk 0:00:11]}  Qe5+ {[%clk 0:00:10]} 48. Qf4 {[%clk 0:00:11]}  Qe7 {[%clk 0:00:09]} 49. Qg4+ {[%clk 0:00:11]}  Kh6 {[%clk 0:00:09]} 50. Qh4+ {[%clk 0:00:11]}  Qxh4+ {[%clk 0:00:08]} 51. Kxh4 {[%clk 0:00:12]}  g5+ {[%clk 0:00:09]} 52. Kg4 {[%clk 0:00:12]}  Kg6 {[%clk 0:00:08]} 53. Rf5 {[%clk 0:00:13]} 1-0

[Event "December 19 Late 2023"]
[Site "https://www.chess.com"]
[Date "2023.12.19"]
[Round "5"]
[White "Mkrtchyan, Mikayel"]
[Black "Mazzilli, Piero"]
[Result "1-0"]
[Board "114"]
[TimeControl "180+1"]
[WhiteFideId "13305743"]
[BlackFideId "807087"]
[WhiteElo "2033"]
[BlackElo "2309"]
[WhiteTeam "ARM"]
[BlackTeam "ITA"]
[WhiteClock "0:00:55"]
[BlackClock "0:00:58"]

1. g3 {[%clk 0:02:55]}  d5 {[%clk 0:02:59]} 2. d4 {[%clk 0:02:53]}  c6 {[%clk 0:02:59]} 3. Bg2 {[%clk 0:02:54]}  Nf6 {[%clk 0:03:00]} 4. Nf3 {[%clk 0:02:53]}  Bf5 {[%clk 0:03:00]} 5. c4 {[%clk 0:02:53]}  e6 {[%clk 0:03:00]} 6. O-O {[%clk 0:02:53]}  h6 {[%clk 0:03:00]} 7. Re1 {[%clk 0:02:50]}  Nbd7 {[%clk 0:03:00]} 8. Nc3 {[%clk 0:02:50]}  Be7 {[%clk 0:03:00]} 9. Ne5 {[%clk 0:02:42]}  O-O {[%clk 0:02:58]} 10. b3 {[%clk 0:02:39]}  Bb4 {[%clk 0:02:45]} 11. Bd2 {[%clk 0:02:30]}  Nxe5 {[%clk 0:02:43]} 12. dxe5 {[%clk 0:02:30]}  Nd7 {[%clk 0:02:43]} 13. e4 {[%clk 0:02:25]}  Bxc3 {[%clk 0:02:38]} 14. Bxc3 {[%clk 0:02:17]}  Bxe4 {[%clk 0:02:34]} 15. Bxe4 {[%clk 0:02:17]}  dxe4 {[%clk 0:02:35]} 16. Rxe4 {[%clk 0:02:14]}  Nc5 {[%clk 0:02:35]} 17. Rd4 {[%clk 0:02:12]}  Qb6 {[%clk 0:02:23]} 18. Qd2 {[%clk 0:02:06]}  Rfd8 {[%clk 0:02:11]} 19. Rd1 {[%clk 0:02:04]}  Rxd4 {[%clk 0:02:11]} 20. Qxd4 {[%clk 0:01:52]}  Na6 {[%clk 0:02:07]} 21. Qxb6 {[%clk 0:01:46]}  axb6 {[%clk 0:02:07]} 22. Rd7 {[%clk 0:01:41]}  Nc5 {[%clk 0:02:06]} 23. Rd2 {[%clk 0:01:40]}  Kf8 {[%clk 0:01:59]} 24. Bb4 {[%clk 0:01:37]}  Ke7 {[%clk 0:01:53]} 25. f3 {[%clk 0:01:34]}  Rd8 {[%clk 0:01:52]} 26. Rxd8 {[%clk 0:01:32]}  Kxd8 {[%clk 0:01:53]} 27. Bxc5 {[%clk 0:01:32]}  bxc5 {[%clk 0:01:53]} 28. Kf2 {[%clk 0:01:33]}  Ke7 {[%clk 0:01:37]} 29. Ke3 {[%clk 0:01:32]}  f5 {[%clk 0:01:27]} 30. exf6+ {[%clk 0:01:31]}  Kxf6 {[%clk 0:01:27]} 31. Ke4 {[%clk 0:01:16]}  b6 {[%clk 0:01:25]} 32. f4 {[%clk 0:01:06]}  g6 {[%clk 0:01:23]} 33. h4 {[%clk 0:00:55]}  h5 {[%clk 0:01:21]} 34. a3 {[%clk 0:00:55]}  Kf7 {[%clk 0:01:15]} 35. Ke5 {[%clk 0:00:55]}  Ke7 {[%clk 0:01:15]} 36. a4 {[%clk 0:00:55]}  Kd7 {[%clk 0:00:58]} 37. Kf6 {[%clk 0:00:55]} 1-0

[Event "December 19 Late 2023"]
[Site "https://www.chess.com"]
[Date "2023.12.19"]
[Round "5"]
[White "Mohammad, Fahim"]
[Black "Rees, Ioan"]
[Result "0-1"]
[Board "116"]
[TimeControl "180+1"]
[WhiteFideId "10206248"]
[BlackFideId "1801236"]
[WhiteElo "2177"]
[BlackElo "2270"]
[WhiteTeam "FRA"]
[BlackTeam "WLS"]
[WhiteClock "0:00:00"]
[BlackClock "0:00:22"]

1. d4 {[%clk 0:03:00]}  d5 {[%clk 0:02:58]} 2. c4 {[%clk 0:03:00]}  c6 {[%clk 0:02:57]} 3. Nf3 {[%clk 0:03:00]}  Nf6 {[%clk 0:02:56]} 4. Nc3 {[%clk 0:03:01]}  e6 {[%clk 0:02:55]} 5. e3 {[%clk 0:03:01]}  Nbd7 {[%clk 0:02:54]} 6. Bd3 {[%clk 0:03:01]}  dxc4 {[%clk 0:02:52]} 7. Bxc4 {[%clk 0:03:01]}  b5 {[%clk 0:02:52]} 8. Bd3 {[%clk 0:03:01]}  b4 {[%clk 0:02:53]} 9. Na4 {[%clk 0:02:53]}  Be7 {[%clk 0:02:47]} 10. O-O {[%clk 0:02:50]}  O-O {[%clk 0:02:47]} 11. a3 {[%clk 0:02:50]}  bxa3 {[%clk 0:02:41]} 12. bxa3 {[%clk 0:02:51]}  c5 {[%clk 0:02:42]} 13. Bb2 {[%clk 0:02:36]}  Rb8 {[%clk 0:02:38]} 14. Rb1 {[%clk 0:02:16]}  Bb7 {[%clk 0:02:27]} 15. Qe2 {[%clk 0:01:50]}  Qa5 {[%clk 0:02:23]} 16. Nxc5 {[%clk 0:01:36]}  Nxc5 {[%clk 0:02:20]} 17. dxc5 {[%clk 0:01:36]}  Qxc5 {[%clk 0:02:19]} 18. Rfc1 {[%clk 0:01:21]}  Qh5 {[%clk 0:02:19]} 19. e4 {[%clk 0:00:53]}  Rfd8 {[%clk 0:02:14]} 20. Be5 {[%clk 0:00:44]}  Rbc8 {[%clk 0:02:05]} 21. Rxc8 {[%clk 0:00:42]}  Rxc8 {[%clk 0:02:02]} 22. Rxb7 {[%clk 0:00:37]}  Rc1+ {[%clk 0:02:02]} 23. Ne1 {[%clk 0:00:20]}  Qxe2 {[%clk 0:02:01]} 24. Bxe2 {[%clk 0:00:17]}  Rxe1+ {[%clk 0:02:01]} 25. Bf1 {[%clk 0:00:17]}  Nxe4 {[%clk 0:01:50]} 26. f3 {[%clk 0:00:14]}  Nd2 {[%clk 0:01:47]} 27. Rb8+ {[%clk 0:00:13]}  Bf8 {[%clk 0:01:46]} 28. Kf2 {[%clk 0:00:12]}  Rxf1+ {[%clk 0:01:41]} 29. Ke2 {[%clk 0:00:12]}  Rb1 {[%clk 0:01:23]} 30. Rc8 {[%clk 0:00:04]}  Rb6 {[%clk 0:00:48]} 31. Kxd2 {[%clk 0:00:03]}  f6 {[%clk 0:00:49]} 32. Bc3 {[%clk 0:00:02]}  Rd6+ {[%clk 0:00:45]} 33. Kc2 {[%clk 0:00:02]}  Rd7 {[%clk 0:00:43]} 34. Bb4 {[%clk 0:00:03]}  Rf7 {[%clk 0:00:44]} 35. Kb3 {[%clk 0:00:02]}  g5 {[%clk 0:00:43]} 36. Ra8 {[%clk 0:00:02]}  Kg7 {[%clk 0:00:43]} 37. Bxf8+ {[%clk 0:00:03]}  Rxf8 {[%clk 0:00:43]} 38. Rxa7+ {[%clk 0:00:03]}  Kg6 {[%clk 0:00:44]} 39. Ra4 {[%clk 0:00:04]}  h5 {[%clk 0:00:43]} 40. Ra7 {[%clk 0:00:04]}  Kf5 {[%clk 0:00:42]} 41. a4 {[%clk 0:00:04]}  Rb8+ {[%clk 0:00:42]} 42. Kc4 {[%clk 0:00:04]}  Rb1 {[%clk 0:00:42]} 43. g3 {[%clk 0:00:04]}  Rf1 {[%clk 0:00:41]} 44. Ra5+ {[%clk 0:00:03]}  e5 {[%clk 0:00:40]} 45. Rb5 {[%clk 0:00:02]}  Rxf3 {[%clk 0:00:40]} 46. Rb2 {[%clk 0:00:02]}  Ra3 {[%clk 0:00:40]} 47. Kb4 {[%clk 0:00:03]}  Ra1 {[%clk 0:00:39]} 48. Rf2+ {[%clk 0:00:04]}  Ke6 {[%clk 0:00:39]} 49. a5 {[%clk 0:00:04]}  e4 {[%clk 0:00:39]} 50. Kb5 {[%clk 0:00:04]}  f5 {[%clk 0:00:39]} 51. a6 {[%clk 0:00:04]}  e3 {[%clk 0:00:35]} 52. Rf3 {[%clk 0:00:04]}  Ra3 {[%clk 0:00:32]} 53. a7 {[%clk 0:00:03]}  Rxa7 {[%clk 0:00:28]} 54. Rxe3+ {[%clk 0:00:04]}  Kf6 {[%clk 0:00:29]} 55. Kc6 {[%clk 0:00:04]}  Ra2 {[%clk 0:00:27]} 56. Kd6 {[%clk 0:00:02]}  Rd2+ {[%clk 0:00:25]} 57. Kc5 {[%clk 0:00:02]}  Rxh2 {[%clk 0:00:25]} 58. Kd5 {[%clk 0:00:03]}  Rd2+ {[%clk 0:00:25]} 59. Kc5 {[%clk 0:00:03]}  Rd8 {[%clk 0:00:23]} 60. Ra3 {[%clk 0:00:01]}  h4 {[%clk 0:00:21]} 61. gxh4 {[%clk 0:00:01]}  gxh4 {[%clk 0:00:22]} 62. Rh3 {[%clk 0:00:00]}  Kg5 {[%clk 0:00:22]} 0-1

[Event "December 19 Late 2023"]
[Site "https://www.chess.com"]
[Date "2023.12.19"]
[Round "5"]
[White "Pert, Nina"]
[Black "Bru Rullo, Llatzer"]
[Result "0-1"]
[Board "117"]
[TimeControl "180+1"]
[WhiteFideId "456853"]
[BlackFideId "22219668"]
[WhiteElo "1726"]
[BlackElo "2190"]
[WhiteTeam "ENG"]
[BlackTeam "ESP"]
[WhiteClock "0:00:17"]
[BlackClock "0:00:18"]

1. e4 {[%clk 0:03:00]}  c5 {[%clk 0:02:59]} 2. Nf3 {[%clk 0:03:00]}  d6 {[%clk 0:03:00]} 3. d4 {[%clk 0:03:00]}  cxd4 {[%clk 0:03:00]} 4. Nxd4 {[%clk 0:03:00]}  Nf6 {[%clk 0:03:01]} 5. Nc3 {[%clk 0:03:00]}  e6 {[%clk 0:03:01]} 6. f3 {[%clk 0:02:58]}  a6 {[%clk 0:03:01]} 7. Be3 {[%clk 0:02:56]}  b5 {[%clk 0:03:00]} 8. Be2 {[%clk 0:02:47]}  Be7 {[%clk 0:02:57]} 9. Qd2 {[%clk 0:02:44]}  Bb7 {[%clk 0:02:52]} 10. O-O-O {[%clk 0:02:41]}  Nc6 {[%clk 0:02:51]} 11. Kb1 {[%clk 0:02:38]}  Rc8 {[%clk 0:02:51]} 12. Nb3 {[%clk 0:02:32]}  Ne5 {[%clk 0:02:34]} 13. g4 {[%clk 0:02:24]}  Nfd7 {[%clk 0:02:27]} 14. f4 {[%clk 0:02:09]}  Nc4 {[%clk 0:02:23]} 15. Bxc4 {[%clk 0:02:09]}  bxc4 {[%clk 0:02:10]} 16. Nd4 {[%clk 0:02:06]}  Nc5 {[%clk 0:02:09]} 17. Qg2 {[%clk 0:01:40]}  Ba8 {[%clk 0:01:57]} 18. f5 {[%clk 0:01:33]}  Rb8 {[%clk 0:01:50]} 19. g5 {[%clk 0:01:10]}  Qb6 {[%clk 0:01:37]} 20. b3 {[%clk 0:01:07]}  Qb4 {[%clk 0:01:36]} 21. Bd2 {[%clk 0:01:02]}  cxb3 {[%clk 0:01:21]} 22. Nxb3 {[%clk 0:01:02]}  Nxe4 {[%clk 0:01:03]} 23. Nxe4 {[%clk 0:00:57]}  Qxe4 {[%clk 0:01:04]} 24. Qf2 {[%clk 0:00:56]}  Qxf5 {[%clk 0:00:56]} 25. Qa7 {[%clk 0:00:54]}  O-O {[%clk 0:00:42]} 26. Qxe7 {[%clk 0:00:45]}  Bxh1 {[%clk 0:00:40]} 27. Rxh1 {[%clk 0:00:46]}  Rfc8 {[%clk 0:00:38]} 28. Rc1 {[%clk 0:00:42]}  a5 {[%clk 0:00:32]} 29. a4 {[%clk 0:00:37]}  Rxb3+ {[%clk 0:00:28]} 30. Ka2 {[%clk 0:00:37]}  Rbb8 {[%clk 0:00:22]} 31. c4 {[%clk 0:00:22]}  Qd3 {[%clk 0:00:19]} 32. Bxa5 {[%clk 0:00:17]}  Qb3+ {[%clk 0:00:18]} 33. Ka1 {[%clk 0:00:17]}  Qb2# {[%clk 0:00:18]} 0-1

[Event "December 19 Late 2023"]
[Site "https://www.chess.com"]
[Date "2023.12.19"]
[Round "5"]
[White "Xie, Bryan"]
[Black "Navyblue1"]
[Result "1-0"]
[Board "119"]
[TimeControl "180+1"]
[WhiteFideId "30941296"]
[WhiteElo "2033"]
[BlackElo "2132"]
[WhiteTeam "USA"]
[WhiteClock "0:00:11"]
[BlackClock "0:00:17"]

1. e4 {[%clk 0:01:58]}  c5 {[%clk 0:02:58]} 2. Nf3 {[%clk 0:01:57]}  d6 {[%clk 0:02:58]} 3. d4 {[%clk 0:01:58]}  cxd4 {[%clk 0:02:58]} 4. Nxd4 {[%clk 0:01:59]}  Nf6 {[%clk 0:02:58]} 5. Nc3 {[%clk 0:01:50]}  a6 {[%clk 0:02:58]} 6. h4 {[%clk 0:01:49]}  e5 {[%clk 0:02:53]} 7. Nb3 {[%clk 0:01:49]}  Be7 {[%clk 0:02:48]} 8. Bg5 {[%clk 0:01:48]}  Be6 {[%clk 0:02:42]} 9. Bxf6 {[%clk 0:01:44]}  Bxf6 {[%clk 0:02:42]} 10. g3 {[%clk 0:01:44]}  b5 {[%clk 0:02:38]} 11. Qd2 {[%clk 0:01:45]}  Be7 {[%clk 0:02:37]} 12. O-O-O {[%clk 0:01:45]}  Nd7 {[%clk 0:02:31]} 13. Nd5 {[%clk 0:01:44]}  Bxd5 {[%clk 0:02:28]} 14. Qxd5 {[%clk 0:01:43]}  Rc8 {[%clk 0:02:24]} 15. Kb1 {[%clk 0:01:40]}  Qc7 {[%clk 0:02:23]} 16. Qd2 {[%clk 0:01:29]}  O-O {[%clk 0:02:09]} 17. Bh3 {[%clk 0:01:28]}  Rfd8 {[%clk 0:02:07]} 18. f4 {[%clk 0:01:15]}  Ra8 {[%clk 0:02:05]} 19. Bxd7 {[%clk 0:00:39]}  Qxd7 {[%clk 0:01:56]} 20. fxe5 {[%clk 0:00:40]}  Qe6 {[%clk 0:01:48]} 21. exd6 {[%clk 0:00:39]}  Bf6 {[%clk 0:01:49]} 22. Qd5 {[%clk 0:00:36]}  Re8 {[%clk 0:01:39]} 23. Qxe6 {[%clk 0:00:34]}  Rxe6 {[%clk 0:01:37]} 24. Nc5 {[%clk 0:00:35]}  Re5 {[%clk 0:01:34]} 25. Nd7 {[%clk 0:00:30]}  Rxe4 {[%clk 0:01:31]} 26. Nxf6+ {[%clk 0:00:31]}  gxf6 {[%clk 0:01:31]} 27. Rhe1 {[%clk 0:00:29]}  Re6 {[%clk 0:00:55]} 28. d7 {[%clk 0:00:14]}  Rd8 {[%clk 0:00:54]} 29. Rxe6 {[%clk 0:00:14]}  fxe6 {[%clk 0:00:53]} 30. b4 {[%clk 0:00:14]}  Kf7 {[%clk 0:00:53]} 31. Rd6 {[%clk 0:00:15]}  Ke7 {[%clk 0:00:52]} 32. Rxa6 {[%clk 0:00:15]}  Rxd7 {[%clk 0:00:52]} 33. Rb6 {[%clk 0:00:16]}  Rd1+ {[%clk 0:00:50]} 34. Kb2 {[%clk 0:00:15]}  Rg1 {[%clk 0:00:50]} 35. Rxb5 {[%clk 0:00:15]}  h6 {[%clk 0:00:46]} 36. a4 {[%clk 0:00:14]}  Rxg3 {[%clk 0:00:46]} 37. a5 {[%clk 0:00:14]}  Rg8 {[%clk 0:00:39]} 38. a6 {[%clk 0:00:15]}  Ra8 {[%clk 0:00:39]} 39. Rb6 {[%clk 0:00:13]}  f5 {[%clk 0:00:39]} 40. b5 {[%clk 0:00:14]}  f4 {[%clk 0:00:39]} 41. Rb7+ {[%clk 0:00:15]}  Kd6 {[%clk 0:00:36]} 42. Kc3 {[%clk 0:00:15]}  Kc5 {[%clk 0:00:30]} 43. a7 {[%clk 0:00:11]}  f3 {[%clk 0:00:26]} 44. Kd3 {[%clk 0:00:11]}  e5 {[%clk 0:00:25]} 45. b6 {[%clk 0:00:11]}  e4+ {[%clk 0:00:24]} 46. Ke3 {[%clk 0:00:11]}  Kc6 {[%clk 0:00:24]} 47. Rb8 {[%clk 0:00:11]}  Rxb8 {[%clk 0:00:20]} 48. axb8=Q {[%clk 0:00:12]}  Kc5 {[%clk 0:00:20]} 49. Qc7+ {[%clk 0:00:12]}  Kd5 {[%clk 0:00:17]} 50. b7 {[%clk 0:00:11]} 1-0